Cogmind - Beta 11 X6 @@@ ROGUE MODE // 2021.08.08 @ 17:00:52 Player: Plexion Result: Destroyed by B-75 Beast with Magnetic Acceleration Cannon Performance ------------- Evolutions (5) 2500 Regions Visited (26) 5200 Robots Destroyed (195) 975 Value Destroyed (6979) 6979 Prototype IDs (58) 1160 Alien Tech Used (0) 0 Bonus (4122) 4122 TOTAL SCORE: 20936 Bonus ------- High Alert Combat Kills 391 Follower Combat Kills 2379 Entered Garrisons 600 Used RIF Installer 1000 Aligned with FarCom 300 Met Data Miner 300 Built Enhanced Grunts 300 Met R17 at Cetus 500 Friendly Fire -1648 Cogmind --------- Core Integrity 0/1000 Matter 300/300 Energy 100/100 System Corruption 11% Temperature Cool (12) Movement Core (1400) Ox27 Location -5/Garrison Parts ------- > --- POWER (1) -------- (None) > --- PROPULSION (6) --- (None) > --- UTILITY (8) ------ Huge Storage Unit Improved Signal Interpreter 0b10 Decoder Chip [Generic] Relay Coupler [Grunt] (9) Relay Coupler [Programmer] (62) > --- WEAPON (2) ------- CR-A16's Behemoth Slayer > --- INVENTORY (25) --- Quantum Reactor Improved Coolant Injector Active Sensor Suite Improved Medium Armor Plating Improved Medium Armor Plating Improved Medium Armor Plating Layered Medium Armor Plating Layered Medium Armor Plating Centrium Medium Armor Plating Centrium Medium Armor Plating Medium Reflective Plating Relay Coupler [Programmer] (86) Relay Coupler [Programmer] (79) Advanced Variable Charge Gun Heavy Phase Cannon Neutron Cannon KE Penetrator Improved KE Penetrator Improved KE Penetrator Improved KE Penetrator GAL Module Peak State ------------ > --- POWER ------------ Micro Fission Core > --- PROPULSION ------- Carbon-fiber Leg Carbon-fiber Leg Flexi-carbon Leg Enhanced Flexi-carbon Leg Enhanced Flexi-carbon Leg Myomer Leg > --- UTILITY ---------- Huge Storage Unit Improved Signal Interpreter 0b10 Decoder Chip [Generic] Improved Medium Armor Plating Layered Medium Armor Plating Layered Medium Armor Plating Centrium Medium Armor Plating Relay Coupler [NC] > --- WEAPON ----------- Improved Remote Datajack CR-A16's Behemoth Slayer > --- INVENTORY -------- Quantum Reactor Carbon-fiber Leg Carbon-fiber Leg Carbon-fiber Leg Improved Coolant Injector Active Sensor Suite Improved Medium Armor Plating Improved Medium Armor Plating Improved Medium Armor Plating Layered Medium Armor Plating Centrium Medium Armor Plating Centrium Medium Armor Plating Medium Reflective Plating Relay Coupler [Programmer] Relay Coupler [Programmer] Relay Coupler [Programmer] Advanced Variable Charge Gun Heavy Phase Cannon KE Penetrator Improved KE Penetrator Improved KE Penetrator Improved KE Penetrator GAL Module [Rating: 102] Favorites ----------- Power Micro Fission Core Engine Improved Ion Engine Power Core Micro Fission Core Reactor Fusion Reactor Propulsion Carbon-fiber Leg Treads Armored Treads Leg Carbon-fiber Leg Wheel Armored Huge Wheel Utility Large Storage Unit Device Improved Heat Sink Storage Large Storage Unit Processor Improved Signal Interpreter Hackware Relay Coupler [Programmer] Protection Hardened Medium Armor Plating Weapon Advanced Beam Rifle Energy Gun Advanced Beam Rifle Energy Cannon Phase Cannon Ballistic Gun Assault Rifle Launcher Rocket Launcher Special Weapon Improved Remote Datajack Piercing Weapon CR-A16's Behemoth Slayer Special Melee Weapon Improved Datajack Build | -11 -10 -10 -9 -9 -9 -8 -8 -7 -7 -7 -6 -6 -6 -6 -6 -6 -6 -5 -5 -5 -5 -5 -5 -5 -5 -5 ------- Run | Scr Mat Min Mat Min Exi Min Mat Fac Low Zio Pro Fac Gar Fac Low Low Dat Pro Fac Gar Fac Ext Cet Arc Hub Gar Slots Evolved 10 | . . . 2 . . . 2 2 . . . 2 . . . . . . 2 . . . . . . . Power . | . . . . . . . . . . . . . . . . . . . . . . . . . . . Propulsion 4 | . . . . . . . 2 1 . . . . . . . . . . 1 . . . . . . . Utility 6 | . . . 2 . . . . 1 . . . 2 . . . . . . 1 . . . . . . . Weapon . | . . . . . . . . . . . . . . . . . . . . . . . . . . . Parts Attached 253 | 6 6 3 23 1 20 1 29 6 . 4 8 8 9 3 11 1 . 6 6 24 16 23 8 2 23 6 Power 18 | 1 . 1 1 . 2 . 2 1 . 1 . . 1 . 1 1 . . 2 3 1 . . . . . Engine 9 | 1 . 1 1 . 1 . 2 1 . . . . . . 1 1 . . . . . . . . . . Core 7 | . . . . . 1 . . . . 1 . . 1 . . . . . 1 2 1 . . . . . Reactor 2 | . . . . . . . . . . . . . . . . . . . 1 1 . . . . . . Propulsion 64 | 2 . . 7 . 2 . 10 1 . . 1 1 4 1 1 . . . 2 9 . 10 . 1 11 1 Treads 14 | 2 . . 7 . 2 . . . . . . 1 . . . . . . 1 1 . . . . . . Leg 49 | . . . . . . . 10 1 . . 1 . 4 . 1 . . . 1 8 . 10 . 1 11 1 Wheel 1 | . . . . . . . . . . . . . . 1 . . . . . . . . . . . . Hover . | . . . . . . . . . . . . . . . . . . . . . . . . . . . Flight . | . . . . . . . . . . . . . . . . . . . . . . . . . . . Utility 82 | 1 2 2 8 . 9 . 7 4 . 2 1 2 . 2 2 . . 6 2 8 6 7 2 . 7 2 Device 17 | . 1 2 . . 2 . 4 . . . 1 1 . . . . . 2 . 3 . . . . 1 . Storage 8 | 1 1 . 1 . . . . . . . . . . . . . . 2 . . 2 1 . . . . Processor 9 | . . . . . 1 . . 2 . 1 . 1 . 1 1 . . . 2 . . . . . . . Hackware 8 | . . . . . . . . 1 . . . . . . 1 . . . . 2 1 . . . 1 2 Protection 40 | . . . 7 . 6 . 3 1 . 1 . . . 1 . . . 2 . 3 3 6 2 . 5 . Artifact . | . . . . . . . . . . . . . . . . . . . . . . . . . . . Weapon 89 | 2 4 . 7 1 7 1 10 . . 1 6 5 4 . 7 . . . . 4 9 6 6 1 5 3 Energy Gun 25 | . 3 . 1 . 2 . 7 . . . 3 4 2 . . . . . . 2 1 . . . . . Energy Cannon 8 | . . . 1 . . . . . . . . . . . 1 . . . . . 2 1 1 . 1 1 Ballistic Gun 26 | 2 1 . 3 . 5 . 2 . . . 2 . 1 . 3 . . . . 2 1 . 3 . 1 . Ballistic Cannon . | . . . . . . . . . . . . . . . . . . . . . . . . . . . Launcher 9 | . . . 2 1 . 1 1 . . . 1 1 1 . 1 . . . . . . . . . . . Special Weapon 11 | . . . . . . . . . . . . . . . . . . . . . 5 3 . 1 1 1 Impact Weapon . | . . . . . . . . . . . . . . . . . . . . . . . . . . . Slashing Weapon . | . . . . . . . . . . . . . . . . . . . . . . . . . . . Piercing Weapon 9 | . . . . . . . . . . 1 . . . . 1 . . . . . . 2 2 . 2 1 Special Melee Weapon 1 | . . . . . . . . . . . . . . . 1 . . . . . . . . . . . Unidentified Prototypes 18 | . 1 1 1 . 6 . 2 . . . . 1 . . . . . . 2 . 1 . 2 . 1 . Corrupted Parts 1 | . . . . . . . 1 . . . . . . . . . . . . . . . . . . . System Corruption 4 | . . . . . . . 4 . . . . . . . . . . . . . . . . . . . Parts Lost 92 | . . 1 3 . 9 . 12 3 . . 5 . 6 3 3 1 . 2 2 22 1 . 1 1 6 11 Power 12 | . . 1 1 . 2 . 2 1 . . . . . 1 . 1 . . . 2 . . . . . 1 Propulsion 35 | . . . . . 2 . 4 2 . . 1 . 3 1 . . . 1 1 8 1 . . 1 5 5 Utility 32 | . . . 1 . 4 . 5 . . . 3 . 1 1 2 . . 1 1 8 . . 1 . 1 3 Weapon 13 | . . . 1 . 1 . 1 . . . 1 . 2 . 1 . . . . 4 . . . . . 2 Highest Loss Streak 12 | . . 1 2 . 5 . 4 2 . . 4 . 4 3 3 1 . 2 2 12 1 . 1 1 3 9 Average Slot Usage (%) 85 | . 98 100 91 100 92 88 85 79 76 76 67 59 64 65 72 71 73 82 85 63 88 97 99 100 95 84 Engine 4 | . 14 14 10 11 6 . 6 7 7 1 . . . . 6 4 6 6 . . . . . . . . Core 2 | . . . . . 1 11 1 . . 5 7 6 6 3 . . . . . . 5 5 5 5 5 5 Treads 8 | . 28 28 22 22 22 22 . . . . . 2 4 . . . . . 3 3 5 . . . . . Leg 14 | . . . . . . . 34 21 15 15 15 13 16 19 15 20 20 20 20 9 22 31 35 35 31 19 Device 3 | . 12 14 2 . . . 9 7 7 7 6 9 9 3 . . . 6 5 5 . . . . 1 4 Storage 7 | . 14 14 11 11 11 11 9 7 7 7 7 6 6 6 2 . . 5 5 3 2 5 5 5 5 5 Processor 6 | . . . . . 2 . . 5 7 7 7 6 6 11 14 13 13 13 14 15 11 11 11 11 11 11 Hackware 3 | . . . . . . . . 5 7 5 . . . . 5 6 6 6 5 4 11 11 11 11 6 6 Protection 13 | . . . 22 33 25 22 6 7 7 8 6 . . 1 6 6 6 6 9 2 14 15 17 17 18 15 Energy Gun 4 | . 5 28 5 . . . 14 15 15 9 10 11 10 6 1 . . . . 2 . . . . . . Energy Cannon 1 | . . . . . . . . . . . . . . . 3 6 6 6 5 . 1 4 1 . . 4 Ballistic Gun 5 | . 22 . 16 12 15 13 1 . . . 3 1 1 6 1 . . . . . . . 6 8 1 . Launcher 1 | . . . . 9 6 8 1 . . . . . . . . . . . . . . . . . . . Piercing Weapon 1 | . . . . . . . . . . 4 . . . . 4 6 6 6 5 5 5 1 1 . 4 . Naked Turns . | . . . . . . . . . . . . . . . . . . . . . . . . . . . Heaviest Build 129 | 13 22 22 54 56 69 69 68 42 42 42 42 43 43 44 54 35 35 55 46 50 108 121 121 118 129 121 Greatest Support 131 | 40 40 40 40 40 40 40 80 80 45 45 65 50 70 70 55 28 28 55 70 60 60 120 120 120 131 114 Greatest Overweight (x) 5 | . . . 1 1 1 1 1 . . . . 1 2 1 1 1 1 1 . 3 1 1 1 1 1 5 Average Overweight (x) . | . . . . 1 . 1 . . . . . . . . . . 1 . . . . . . . . 1 Largest Inventory Capacity 25 | 8 10 10 15 15 15 15 15 15 15 15 15 15 15 15 15 5 5 10 10 10 25 25 25 25 25 25 Average Capacity 14 | 6 9 10 14 15 15 15 15 15 15 15 15 15 15 15 8 5 5 9 10 8 9 21 25 25 25 25 Most Carried 25 | 2 8 9 15 15 15 15 15 15 15 15 15 15 15 15 14 5 5 10 10 10 10 17 21 21 25 25 Average Carried 12 | 1 5 8 13 15 13 15 14 14 14 14 14 14 14 14 7 5 5 7 9 7 6 13 18 20 23 23 Final Capacity 25 | 8 10 10 15 15 15 15 15 15 15 15 15 15 15 15 5 5 5 10 10 5 10 25 25 25 25 25 Final Carried 23 | 2 8 9 15 15 15 15 15 15 15 15 15 14 15 15 5 5 5 10 9 5 10 17 21 20 23 23 Class Distribution -------------------- 51% | Mutant 31% | Scavenger-Mutant 13% | Bothacker-Mutant Dominant Class ---------------- Mutant | -10/Materials Mutant | -10/Mines Mutant | -9/Materials Mutant | -9/Mines Mutant | -9/Exiles Mutant | -8/Mines Scavenger-Mutant | -8/Materials Scavenger-Mutant | -7/Factory Mutant | -7/Lower Caves Mutant | -7/Zion Scavenger-Mutant | -6/Proximity Caves Mutant | -6/Factory Bothacker-Mutant | -6/Garrison Bothacker-Mutant | -6/Factory Mutant | -6/Lower Caves Mutant | -6/Lower Caves Mutant | -6/Data Miner Scavenger-Mutant | -5/Proximity Caves Scavenger-Mutant | -5/Factory Scavenger-Mutant | -5/Garrison Bothacker-Mutant | -5/Factory Bothacker-Mutant | -5/Extension Commander-Mutant | -5/Cetus Bothacker-Mutant | -5/Archives Scavenger-Mutant | -5/Hub_04(d) Scavenger-Mutant | -5/Garrison Resources | -11 -10 -10 -9 -9 -9 -8 -8 -7 -7 -7 -6 -6 -6 -6 -6 -6 -6 -5 -5 -5 -5 -5 -5 -5 -5 -5 ----------- Run | Scr Mat Min Mat Min Exi Min Mat Fac Low Zio Pro Fac Gar Fac Low Low Dat Pro Fac Gar Fac Ext Cet Arc Hub Gar Matter Collected 5229 | 243 169 25 461 186 835 84 596 45 12 40 145 90 148 33 135 10 . 50 76 254 209 562 201 90 423 107 Remotely . | . . . . . . . . . . . . . . . . . . . . . . . . . . . Salvage Created 8967 | . 408 219 967 1 482 107 1339 115 . . 436 129 436 67 141 157 . 1089 303 954 202 229 275 82 696 133 Parts 470 | . 16 11 71 . 75 6 78 2 . . 6 10 22 . 15 7 . 15 14 46 12 13 10 2 29 10 Haulers Intercepted 9 | . 1 . 5 . . . 2 . . . . . . . . . . . 1 . . . . . . . Recyclers Shooed 1 | . . . . . . . 1 . . . . . . . . . . . . . . . . . . . Parts Field Recycled . | . . . . . . . . . . . . . . . . . . . . . . . . . . . Retrieved Matter . | . . . . . . . . . . . . . . . . . . . . . . . . . . . Parts Self-Destructed 33 | . . . . . . . . . . . 3 . . . 11 6 . 13 . . . . . . . . Prevented 1 | . . . . . . . . . . . . . . . 1 . . . . . . . . . . . Kills | -11 -10 -10 -9 -9 -9 -8 -8 -7 -7 -7 -6 -6 -6 -6 -6 -6 -6 -5 -5 -5 -5 -5 -5 -5 -5 -5 ------- Run | Scr Mat Min Mat Min Exi Min Mat Fac Low Zio Pro Fac Gar Fac Low Low Dat Pro Fac Gar Fac Ext Cet Arc Hub Gar Combat Hostiles Destroyed 158 | . 7 6 21 5 6 3 29 2 . . 8 5 10 1 4 4 . 2 3 22 . 3 3 1 7 6 Melee 37 | . . . . . . . . . . . . . . . . 4 . 2 2 22 . 1 1 . 5 . Guns 58 | . 7 5 11 . 2 . 15 2 . . 5 1 6 1 . . . . . . . . 2 1 . . Cannons 9 | . . . . . . . . . . . . . . . . . . . 1 . . 1 . . 1 6 AOE 49 | . . 1 10 5 4 3 13 . . . 2 4 4 . 3 . . . . . . . . . . . Classes Destroyed 18 | . 2 2 4 1 2 1 1 2 . . 1 . . . 1 . . 1 . . . . . . . . Worker 11 | . . 1 4 . . 1 2 1 . . . . . . . . . . . . 1 . . . 1 . Builder 4 | . . . 1 . . . 2 . . . . . . . . . . . . . 1 . . . . . Hauler 9 | . 1 . 5 . . . 2 . . . . . . . . . . . 1 . . . . . . . Recycler 4 | . . . . . . 1 1 . . . . . . . . . . . . . 1 . . . 1 . Operator 1 | . . . . . . . 1 . . . . . . . . . . . . . . . . . . . Turret 1 | . . . . . 1 . . . . . . . . . . . . . . . . . . . . . Watcher 3 | . . . 1 . . . 1 . . . . . . . . . . . 1 . . . . . . . Swarmer 53 | . . 3 11 . . 3 3 . . . . 4 4 . 3 3 . 2 . 11 . . . . . 6 Grunt 52 | . 7 3 4 . . . 16 . . . 6 1 3 . . . . . 1 8 . 1 . . 2 . Brawler 2 | . . . 1 . . . 1 . . . . . . . . . . . . . . . . . . . Duelist 1 | . . . . . . . . . . . 1 . . . . . . . . . . . . . . . Sentry 21 | . . . 5 . . . 9 . . . 1 . . 1 . 1 . . . 1 . 1 . 1 1 . Hunter 8 | . . . . . . . . 1 . . . . 3 . . . . . . 2 . . . . 2 . Programmer 5 | . . . . . . . . 1 . . . . . . . . . . 2 . . . . . 2 . Behemoth 3 | . . . . . . . . . . . . . . . 1 . . . . . . 1 . . 1 . Cetus Guard 3 | . . . . . . . . . . . . . . . . . . . . . . . 3 . . . Enhanced Grunt 2 | . . . . . . . . . . . . . . . . . . 1 . . . . . . 1 . Zionite 8 | . . . . . 8 . . . . . . . . . . . . . . . . . . . . . Decomposer 1 | . . . . . . . . . . . . . . . 1 . . . . . . . . . . . Tinkerer 1 | . . . . . . . . . . . . . . . . . . 1 . . . . . . . . Assembled 10 | . . . . 5 5 . . . . . . . . . . . . . . . . . . . . . Butcher 1 | . . . . . . . . . . . . . . . . . . . . . . . 1 . . . Best Kill Streak 16 | . 2 3 7 5 6 5 16 2 . . 4 4 7 1 3 2 . 2 1 6 1 1 2 1 2 3 Combat Bots Only 10 | . 2 3 6 5 4 3 10 1 . . 4 4 7 1 3 2 . 2 1 6 . 1 2 1 2 3 Max Kills in Single Turn 3 | . 1 2 2 2 3 3 3 1 . . 1 3 2 1 2 1 . 1 1 1 1 1 1 1 1 1 Gunslinging . | . . . . . . . . . . . . . . . . . . . . . . . . . . . Exploded 3 | . . 1 2 2 3 1 3 . . . 1 3 2 . 2 . . . . . . . . . . . Melee 1 | . . . . . . . . . . . . . . . . 1 . 1 1 1 . 1 1 . 1 . Uniques/NPCs Destroyed 4 | . . . . . 4 . . . . . . . . . . . . . . . . . . . . . 8R-AWN (-9/Exiles) EX-DEC (-9/Exiles) EX-BIN (-9/Exiles) EX-HEX (-9/Exiles) Combat | -11 -10 -10 -9 -9 -9 -8 -8 -7 -7 -7 -6 -6 -6 -6 -6 -6 -6 -5 -5 -5 -5 -5 -5 -5 -5 -5 -------- Run | Scr Mat Min Mat Min Exi Min Mat Fac Low Zio Pro Fac Gar Fac Low Low Dat Pro Fac Gar Fac Ext Cet Arc Hub Gar Damage Taken 18757 | . 280 202 664 164 2032 35 1771 252 . . 1133 121 1352 337 682 390 . 195 440 4371 435 262 569 126 1493 1451 Core 2327 | . 60 32 74 . 279 . 244 71 . . 96 34 248 29 85 31 . 31 38 636 27 . . . 101 211 Absorbed by Shields 228 | . . . . . . . . . . . . . . . . . . . . . . 148 80 . . . Core Remaining (%) 58 | 100 . 63 . . . 11 55 . . . 76 . . . . . . 46 . . . . . . . . Volleys Fired 585 | . 29 12 60 8 124 4 90 14 . . 40 4 25 7 4 . . . 9 9 9 44 19 10 27 37 Largest 2 | . 2 2 2 1 2 1 2 2 . . 2 2 2 2 1 . . . 1 1 1 1 2 2 1 1 Hottest 135 | . 90 90 90 33 65 33 122 122 . . 122 135 135 99 90 . . . 90 90 98 98 98 68 98 90 Shots Fired 895 | . 58 24 115 8 184 4 158 28 . . 73 6 42 14 4 . . . 10 10 10 42 25 18 27 35 Gun 704 | . 58 24 110 . 181 . 142 28 . . 68 4 37 14 . . . . . 8 1 . 13 16 . . Cannon 65 | . . . . . . . . . . . . . . . 1 . . . 10 2 2 4 12 . 7 27 Launcher 51 | . . . 5 8 3 4 16 . . . 5 2 5 . 3 . . . . . . . . . . . Special 75 | . . . . . . . . . . . . . . . . . . . . . 7 38 . 2 20 8 Kinetic 374 | . 46 . 88 . 169 . 10 . . . 10 . 7 7 . . . . . 7 1 . 13 16 . . Thermal 293 | . . . . . 3 . 97 28 . . 58 4 30 7 1 . . . 10 3 2 4 12 . 7 27 Explosive 51 | . . . 5 8 3 4 16 . . . 5 2 5 . 3 . . . . . . . . . . . Electromagnetic 102 | . 12 24 22 . 9 . 35 . . . . . . . . . . . . . . . . . . . Robot Hit Streak 19 | . 6 8 10 2 15 2 10 6 . . 12 7 8 6 2 . . . 6 1 4 17 19 4 7 12 Robot Miss Streak 5 | . 3 5 4 1 3 2 4 2 . . 2 . 3 2 1 . . . 2 2 3 1 2 1 2 5 Penetration Max 1 | . . . . . 1 . . . . . . . . . . . . . . . . . 1 . . . Secondary Targets 3 | . 1 . . . . . . . . . . . 1 . . . . . . . . . 1 . . . Max Gunslinging Chain 1 | . 1 . . . . . . . . . . . 1 . . . . . . . . . 1 . . . Autonomous 3 | . . . . . 3 . . . . . . . . . . . . . . . . . . . . . Shots Hit Robots 692 | . 32 20 74 3 121 2 107 16 . . 49 5 24 10 8 6 . 19 19 42 9 41 18 11 38 18 Core Hits 381 | . 20 11 45 14 37 6 76 6 . . 24 7 21 3 5 6 . 13 11 36 3 3 9 3 15 7 Critical Kills 5 | . . . . . 4 . . . . . . . . . . . . . . . . . . 1 . . Critical Parts Destroyed 10 | . 1 . . . 7 . . . . . . . . . . . . . . . . . . 2 . . Critical Strikes 54 | . 1 . . . 13 . 6 2 . . 3 . . . . 1 . 4 3 11 1 1 . 4 4 . Burn 11 | . . . . . . . 6 2 . . 3 . . . . . . . . . . . . . . . Destroy 18 | . 1 . . . 13 . . . . . . . . . . . . . . . . . . 4 . . Puncture 25 | . . . . . . . . . . . . . . . . 1 . 4 3 11 1 1 . . 4 . Melee Attacks 164 | . . . . . . . . . . . . . . . 9 7 . 20 16 63 13 4 1 . 30 1 Impact . | . . . . . . . . . . . . . . . . . . . . . . . . . . . Slashing . | . . . . . . . . . . . . . . . . . . . . . . . . . . . Piercing 162 | . . . . . . . . . . . . . . . 7 7 . 20 16 63 13 4 1 . 30 1 Sneak Attacks 13 | . . . . . . . . . . . . . . . . . . 3 1 . 3 . . . 6 . Combat Hostiles 1 | . . . . . . . . . . . . . . . . . . . . . . . . . 1 . Follow-up Attacks . | . . . . . . . . . . . . . . . . . . . . . . . . . . . Damage Inflicted 20202 | . 447 455 1523 355 1960 240 4091 387 . . 1290 351 1026 216 328 187 . 1849 777 1507 380 227 774 298 1153 381 Guns 8096 | . 419 279 979 . 1662 . 1850 360 . . 948 85 542 216 . . . . . 51 . . 407 298 . . Cannons 1246 | . . . . . . . . . . . . . . . 31 . . . 256 . . 138 341 . 140 340 Explosions 5135 | . 28 176 544 355 298 240 2241 . . . 342 266 484 . 161 . . . . . . . . . . . Melee 5698 | . . . . . . . . . . . . . . . 136 187 . 1849 521 1456 380 89 26 . 1013 41 Ramming 27 | . . . . . . . . 27 . . . . . . . . . . . . . . . . . . Kinetic 3777 | . 215 . 746 . 1649 . 85 . . . 108 . 118 121 . . . . . 30 . . 407 298 . . Thermal 4749 | . 28 176 210 . 8 . 1256 360 . . 840 85 424 95 31 . . . 256 21 . 138 341 . 140 340 Explosive 4680 | . . . 334 355 298 240 2200 . . . 342 266 484 . 161 . . . . . . . . . . . Electromagnetic 1271 | . 204 279 233 . 5 . 550 . . . . . . . . . . . . . . . . . . . Impact . | . . . . . . . . . . . . . . . . . . . . . . . . . . . Slashing . | . . . . . . . . . . . . . . . . . . . . . . . . . . . Piercing 5698 | . . . . . . . . . . . . . . . 136 187 . 1849 521 1456 380 89 26 . 1013 41 Highest Corruption 11 | . . . . . 2 2 4 4 4 4 . . . . 1 1 1 1 6 7 7 8 8 8 11 11 Average Corruption 5 | . . . . . 2 2 4 3 4 4 . . . . 1 1 1 1 5 6 7 7 8 8 8 11 Corruption Purged . | . . . . . . . . . . . . . . . . . . . . . . . . . . . Effects 162 | . . . . . 7 1 16 7 4 1 . . . . 4 . . . 5 18 17 23 12 4 33 10 Message Errors 49 | . . . . . 2 . 7 4 2 1 . . . . 2 . . . . 4 6 6 5 . 9 1 Matter Fused 29 | . . . . . . . 4 1 . . . . . . . . . . 2 2 5 3 2 . 9 1 Heat Flow Errors 20 | . . . . . 1 1 1 1 1 . . . . . . . . . 1 3 1 3 2 2 2 1 Energy Discharges 19 | . . . . . 1 . 1 1 . . . . . . 1 . . . . 3 1 2 1 2 5 1 Parts Rejected 1 | . . . . . . . 1 . . . . . . . . . . . . . . . . . . . Data Loss (minor) 25 | . . . . . 3 . 1 . 1 . . . . . 1 . . . 1 3 3 6 1 . 3 2 Data Loss (major) 8 | . . . . . . . . . . . . . . . . . . . . 2 . 1 . . 4 1 Misfires 4 | . . . . . . . . . . . . . . . . . . . 1 1 1 . 1 . . . Alerts 1 | . . . . . . . . . . . . . . . . . . . . . . . . . 1 . Misdirections 1 | . . . . . . . . . . . . . . . . . . . . . . . . . . 1 Weapon Failures 5 | . . . . . . . 1 . . . . . . . . . . . . . . 2 . . . 2 Overload Shots . | . . . . . . . . . . . . . . . . . . . . . . . . . . . Overflow Damage 850 | . . . 33 24 29 . 135 2 . . 7 . 35 . . . . 447 25 . 42 . . . 58 13 Projectiles 14 | . . . . . . . . . . . . . . . . . . . 1 . . . . . . 13 Explosions 263 | . . . 33 24 29 . 135 . . . 7 . 35 . . . . . . . . . . . . . Melee 573 | . . . . . . . . 2 . . . . . . . . . 447 24 . 42 . . . 58 . Knockbacks . | . . . . . . . . . . . . . . . . . . . . . . . . . . . Impact . | . . . . . . . . . . . . . . . . . . . . . . . . . . . Kinetic . | . . . . . . . . . . . . . . . . . . . . . . . . . . . Secondary . | . . . . . . . . . . . . . . . . . . . . . . . . . . . Self-Inflicted Damage 633 | . 33 59 118 93 107 5 . . . . 87 . 90 . 41 . . . . . . . . . . . Shots 22 | . 1 2 4 4 3 2 . . . . 2 . 3 . 1 . . . . . . . . . . . Rammed . | . . . . . . . . . . . . . . . . . . . . . . . . . . . Targets Rammed 2 | . . . 1 . . . . 1 . . . . . . . . . . . . . . . . . . Kicked 1 | . . . . . . . . 1 . . . . . . . . . . . . . . . . . . Crushed 1 | . . . 1 . . . . . . . . . . . . . . . . . . . . . . . Highest Temperature 351 | . 69 24 81 98 341 164 351 137 135 . 270 27 27 70 40 . . . 265 153 179 351 288 126 338 121 Average Temperature 82 | . 39 10 20 49 133 53 96 21 83 . 98 15 9 48 25 . . . 74 48 49 86 135 69 112 13 Received Heat Transfer 3276 | . 162 63 207 . . . 882 . . . 231 18 153 96 84 36 . . 63 792 . 49 71 18 219 132 Effects 14 | . . . . . 3 . 3 . . . . . . . . . . . . . . 2 4 . 2 . Shutdowns 1 | . . . . . . . . . . . . . . . . . . . . . . . . . 1 . Energy Bleed 5 | . . . . . 2 . 1 . . . . . . . . . . . . . . . 1 . 1 . Interference 3 | . . . . . . . . . . . . . . . . . . . . . . . 3 . . . Matter Decay 1 | . . . . . . . . . . . . . . . . . . . . . . 1 . . . . Short Circuit 3 | . . . . . 1 . 1 . . . . . . . . . . . . . . 1 . . . . Damage (minor) 1 | . . . . . . . 1 . . . . . . . . . . . . . . . . . . . Siege Activations . | . . . . . . . . . . . . . . . . . . . . . . . . . . . Robots Corrupted . | . . . . . . . . . . . . . . . . . . . . . . . . . . . Combat Hostiles . | . . . . . . . . . . . . . . . . . . . . . . . . . . . Parts Fried 10 | . 1 . 1 . . . 7 . . . . . . . . . . . . . . . . . 1 . Impact Corruptions 1 | . . . . . . . . 1 . . . . . . . . . . . . . . . . . . Robots Melted 2 | . . . . . . . 1 . . . 1 . . . . . . . . . . . . . . . Combat Hostiles 2 | . . . . . . . 1 . . . 1 . . . . . . . . . . . . . . . Parts Melted 11 | . . . . . . . 5 2 . . 1 . 1 . . . . . 1 . . . . . . 1 Heat Transferred 7860 | . 50 250 250 . 27 . 2488 740 . . 1776 148 740 185 37 . . . 259 50 . 148 352 . 148 212 Parts Sabotaged . | . . . . . . . . . . . . . . . . . . . . . . . . . . . Parts Stolen . | . . . . . . . . . . . . . . . . . . . . . . . . . . . Parts Stripped . | . . . . . . . . . . . . . . . . . . . . . . . . . . . Power Chain Reactions 9 | . 1 4 3 . . . 1 . . . . . . . . . . . . . . . . . . . Missiles Intercepted . | . . . . . . . . . . . . . . . . . . . . . . . . . . . Alert | -11 -10 -10 -9 -9 -9 -8 -8 -7 -7 -7 -6 -6 -6 -6 -6 -6 -6 -5 -5 -5 -5 -5 -5 -5 -5 -5 ------- Run | Scr Mat Min Mat Min Exi Min Mat Fac Low Zio Pro Fac Gar Fac Low Low Dat Pro Fac Gar Fac Ext Cet Arc Hub Gar Peak Influence 840 | . 191 190 356 102 . 110 840 485 . . . 132 216 136 . . . . 112 391 216 401 319 337 524 525 Initial 311 | . . 25 . 87 . . 42 311 . . . . 2 113 . . . . . 11 205 42 33 127 65 285 Average 228 | . 73 125 198 85 . 72 637 286 . . . 37 109 120 . . . . 51 228 138 231 219 209 313 413 Maximum Alert Level 3 | . . . 1 . . . 3 2 . . . . 1 . . . . . . 1 1 2 1 1 2 2 Low Security (%) 48 | 100 100 100 42 100 . 100 4 9 . . . 100 73 100 . . . . 100 50 39 37 43 70 23 . Level 1 37 | . . . 57 . . . 12 85 . . . . 26 . . . . . . 49 60 44 56 29 39 57 Level 2 9 | . . . . . . . 27 5 . . . . . . . . . . . . . 17 . . 37 42 Level 3 4 | . . . . . . . 54 . . . . . . . . . . . . . . . . . . . Level 4 . | . . . . . . . . . . . . . . . . . . . . . . . . . . . Level 5 . | . . . . . . . . . . . . . . . . . . . . . . . . . . . High Security . | . . . . . . . . . . . . . . . . . . . . . . . . . . . Max Security . | . . . . . . . . . . . . . . . . . . . . . . . . . . . Squads Dispatched 28 | . 4 . 2 . . . 6 3 . . . . . . . . . . 2 . 3 2 . . 6 . Investigation 4 | . 1 . 1 . . . . . . . . . . . . . . . . . 1 1 . . . . Extermination 4 | . . . . . . . . 1 . . . . . . . . . . 1 . . . . . 2 . Reinforcement 15 | . 3 . 1 . . . 1 2 . . . . . . . . . . 1 . 2 1 . . 4 . Assault 1 | . . . . . . . 1 . . . . . . . . . . . . . . . . . . . Garrison 4 | . . . . . . . 4 . . . . . . . . . . . . . . . . . . . Intercept . | . . . . . . . . . . . . . . . . . . . . . . . . . . . Construction Impeded 1 | . . . . . . . 1 . . . . . . . . . . . . . . . . . . . Haulers Reinforced 3 | . . . . . . . . . . . . . . . . . . . 1 . 1 . . . 1 . Active Scanning Responses . | . . . . . . . . . . . . . . . . . . . . . . . . . . . Cargo Convoy Interrupts 1 | . . . . . . . . 1 . . . . . . . . . . . . . . . . . . Stealth | -11 -10 -10 -9 -9 -9 -8 -8 -7 -7 -7 -6 -6 -6 -6 -6 -6 -6 -5 -5 -5 -5 -5 -5 -5 -5 -5 --------- Run | Scr Mat Min Mat Min Exi Min Mat Fac Low Zio Pro Fac Gar Fac Low Low Dat Pro Fac Gar Fac Ext Cet Arc Hub Gar Distress Signals 16 | . 2 . 4 . . . 2 3 . . . . . . . . . . . . 1 2 2 . . . Communications Jammed . | . . . . . . . . . . . . . . . . . . . . . . . . . . . Distress Signals . | . . . . . . . . . . . . . . . . . . . . . . . . . . . Times Spotted 305 | . 15 7 31 5 18 4 41 4 1 . 9 7 10 2 6 4 . 11 5 25 5 26 11 6 30 22 Peak Tracking Total 10 | . 3 4 5 4 9 4 10 2 1 . 4 4 7 1 2 3 . 5 2 8 3 5 5 2 6 7 Tactical Retreats 23 | . 1 2 3 . 3 . 5 . . . 1 . . . 1 . . . 1 2 2 . . . . 2 Traps | -11 -10 -10 -9 -9 -9 -8 -8 -7 -7 -7 -6 -6 -6 -6 -6 -6 -6 -5 -5 -5 -5 -5 -5 -5 -5 -5 ------- Run | Scr Mat Min Mat Min Exi Min Mat Fac Low Zio Pro Fac Gar Fac Low Low Dat Pro Fac Gar Fac Ext Cet Arc Hub Gar Traps Triggered 16 | . 1 . 1 . . . 2 3 . . . . 2 . . . . . . 1 1 3 . . 2 . Indirectly . | . . . . . . . . . . . . . . . . . . . . . . . . . . . Trap Hack Attempts . | . . . . . . . . . . . . . . . . . . . . . . . . . . . Triggered . | . . . . . . . . . . . . . . . . . . . . . . . . . . . Disarmed . | . . . . . . . . . . . . . . . . . . . . . . . . . . . Reprogrammed . | . . . . . . . . . . . . . . . . . . . . . . . . . . . Reused . | . . . . . . . . . . . . . . . . . . . . . . . . . . . Traps Extracted . | . . . . . . . . . . . . . . . . . . . . . . . . . . . Installed . | . . . . . . . . . . . . . . . . . . . . . . . . . . . Triggered 4 | . . . . . . . . 1 . . . . . . 2 . . 1 . . . . . . . . Exploded 3 | . . . . . 3 . . . . . . . . . . . . . . . . . . . . . Machines | -11 -10 -10 -9 -9 -9 -8 -8 -7 -7 -7 -6 -6 -6 -6 -6 -6 -6 -5 -5 -5 -5 -5 -5 -5 -5 -5 ---------- Run | Scr Mat Min Mat Min Exi Min Mat Fac Low Zio Pro Fac Gar Fac Low Low Dat Pro Fac Gar Fac Ext Cet Arc Hub Gar Machines Disabled 41 | . . . 5 1 12 1 5 3 . . . . . . . . . . 1 2 . 2 1 3 4 1 Max in Single Turn 2 | . . . 1 1 2 1 1 . . . . . . . . . . . 1 1 . . . 1 . 1 Garrison Access 3 | . . . . . . . 1 1 . . . . . 1 . . . . . . . . . . . . Garrison Relay 2 | . . . . . . . . . . . . . . . . . . . . 1 . . . . . 1 Energy Cycler 2 | . . . . . . . . . . . . . . . . . . . . . . 2 . . . . Machines Sabotaged . | . . . . . . . . . . . . . . . . . . . . . . . . . . . Garrisons Compromised 1 | . . . . . . . . 1 . . . . . . . . . . . . . . . . . . Overloaded Fab Kills . | . . . . . . . . . . . . . . . . . . . . . . . . . . . Fab Network Shutdowns . | . . . . . . . . . . . . . . . . . . . . . . . . . . . Hacking | -11 -10 -10 -9 -9 -9 -8 -8 -7 -7 -7 -6 -6 -6 -6 -6 -6 -6 -5 -5 -5 -5 -5 -5 -5 -5 -5 --------- Run | Scr Mat Min Mat Min Exi Min Mat Fac Low Zio Pro Fac Gar Fac Low Low Dat Pro Fac Gar Fac Ext Cet Arc Hub Gar Machines Accessed 44 | . 3 1 6 . 2 . 3 6 1 . . 3 . 2 . . 3 . 3 . . 5 . . 6 . Terminals 25 | . 3 . 5 . . . 1 3 . . . 1 . 1 . . . . 2 . . 4 . . 5 . Fabricators 1 | . . . . . . . . 1 . . . . . . . . . . . . . . . . . . Repair Stations 1 | . . . . . . . . 1 . . . . . . . . . . . . . . . . . . Recycling Units 2 | . . . 1 . . . . . . . . . . . . . . . . . . 1 . . . . Scanalyzers 2 | . . . . . . . 1 . . . . 1 . . . . . . . . . . . . . . Garrison Access 6 | . . . . . . . 1 1 . . . 1 . 1 . . . . 1 . . . . . 1 . Total Hacks 90 | . 6 1 14 . 2 . 8 10 1 . . 4 . 2 . . 14 . 4 . . 9 . . 15 . Successful 57 | . 3 1 10 . 2 . 4 5 1 . . 4 . 2 . . 14 . 2 . . 4 . . 5 . Failed 33 | . 3 . 4 . . . 4 5 . . . . . . . . . . 2 . . 5 . . 10 . Catastrophic 4 | . . . . . . . . 2 . . . . . . . . . . 1 . . . . . 1 . Database Lockouts . | . . . . . . . . . . . . . . . . . . . . . . . . . . . Manual 33 | . 6 . 11 . 1 . 2 3 . . . . . 1 . . . . . . . 2 1 . 6 . Terminals 52 | . 6 . 12 . . . 2 4 . . . 2 . 1 . . . . 3 . . 8 . . 14 . Fabricators 2 | . . . . . . . . 2 . . . . . . . . . . . . . . . . . . Repair Stations 2 | . . . . . . . . 2 . . . . . . . . . . . . . . . . . . Recycling Units 3 | . . . 2 . . . . . . . . . . . . . . . . . . 1 . . . . Scanalyzers 3 | . . . . . . . 2 . . . . 1 . . . . . . . . . . . . . . Garrison Access 10 | . . . . . . . 4 2 . . . 1 . 1 . . . . 1 . . . . . 1 . Terminal Hacks 35 | . 2 1 4 . 2 . . 1 1 . . 2 . 1 . . 14 . 1 . . 3 . . 3 . Record 2 | . . . . . 1 . . . . . . . . . . . 1 . . . . . . . . . Part Schematic 5 | . . . . . . . . . . . . . . . . . 5 . . . . . . . . . Robot Schematic 5 | . . . . . . . . . . . . . . . . . 5 . . . . . . . . . Robot Analysis 2 | . 1 . . . . . . . . . . . . . . . . . . . . 1 . . . . Prototype ID Bank 3 | . . . . . . . . . . . . . . . . . 3 . . . . . . . . . Open Door 2 | . . 1 . . . . . . 1 . . . . . . . . . . . . . . . . . Branch Access Points 3 | . . . . . . . . 1 . . . . . 1 . . . . 1 . . . . . . . Alert Level 2 | . . . 1 . . . . . . . . 1 . . . . . . . . . . . . . . Unreport Threat 6 | . . . 1 . . . . . . . . 1 . . . . . . . . . 2 . . 2 . Recall Reinforcements 1 | . 1 . . . . . . . . . . . . . . . . . . . . . . . . . Zone Layout 3 | . . . 2 . . . . . . . . . . . . . . . . . . . . . 1 . EX-Prototype ID Bank 1 | . . . . . 1 . . . . . . . . . . . . . . . . . . . . . Fabricator Hacks 1 | . . . . . . . . 1 . . . . . . . . . . . . . . . . . . Load Schematic 1 | . . . . . . . . 1 . . . . . . . . . . . . . . . . . . Repair Station Hacks 2 | . . . . . . . . 2 . . . . . . . . . . . . . . . . . . Scan Component 1 | . . . . . . . . 1 . . . . . . . . . . . . . . . . . . Repair 1 | . . . . . . . . 1 . . . . . . . . . . . . . . . . . . Recycling Unit Hacks . | . . . . . . . . . . . . . . . . . . . . . . . . . . . Scanalyzer 3 | . . . . . . . 2 . . . . 1 . . . . . . . . . . . . . . Insert Component 2 | . . . . . . . 1 . . . . 1 . . . . . . . . . . . . . . Analyze 1 | . . . . . . . 1 . . . . . . . . . . . . . . . . . . . Garrison Access Hacks 6 | . . . . . . . 1 1 . . . 1 . 1 . . . . 1 . . . . . 1 . Unlock Access 3 | . . . . . . . . . . . . 1 . . . . . . 1 . . . . . 1 . Seal Access 3 | . . . . . . . 1 1 . . . . . 1 . . . . . . . . . . . . Unauthorized Hacks 10 | . 1 . 6 . . . 1 . . . . . . . . . . . . . . 1 . . 1 . Terminals 8 | . 1 . 5 . . . 1 . . . . . . . . . . . . . . . . . 1 . Track 7 | . 1 . 4 . . . 1 . . . . . . . . . . . . . . . . . 1 . Disrupt 1 | . . . 1 . . . . . . . . . . . . . . . . . . . . . . . Fabricators . | . . . . . . . . . . . . . . . . . . . . . . . . . . . Repair Stations . | . . . . . . . . . . . . . . . . . . . . . . . . . . . Recycling Units 2 | . . . 1 . . . . . . . . . . . . . . . . . . 1 . . . . Mask 1 | . . . 1 . . . . . . . . . . . . . . . . . . . . . . . Tunnel 1 | . . . . . . . . . . . . . . . . . . . . . . 1 . . . . Scanalyzers . | . . . . . . . . . . . . . . . . . . . . . . . . . . . Garrison Access . | . . . . . . . . . . . . . . . . . . . . . . . . . . . Data Cores Recovered . | . . . . . . . . . . . . . . . . . . . . . . . . . . . Used . | . . . . . . . . . . . . . . . . . . . . . . . . . . . Hacking Detections 23 | . 3 . 4 . . . 1 5 . . . 1 . . . . . . 2 . . 3 . . 4 . Full Trace Events . | . . . . . . . . . . . . . . . . . . . . . . . . . . . Feedback Events . | . . . . . . . . . . . . . . . . . . . . . . . . . . . Feedback Blocked . | . . . . . . . . . . . . . . . . . . . . . . . . . . . Robot Schematics Acquired 5 | . . . . . . . . . . . . . . . . . 5 . . . . . . . . . Robots Built . | . . . . . . . . . . . . . . . . . . . . . . . . . . . Matter . | . . . . . . . . . . . . . . . . . . . . . . . . . . . Time . | . . . . . . . . . . . . . . . . . . . . . . . . . . . Total Robot Build Rating . | . . . . . . . . . . . . . . . . . . . . . . . . . . . Part Schematics Acquired 6 | . . . . . . . 1 . . . . . . . . . 5 . . . . . . . . . Parts Built . | . . . . . . . . . . . . . . . . . . . . . . . . . . . Matter . | . . . . . . . . . . . . . . . . . . . . . . . . . . . Time . | . . . . . . . . . . . . . . . . . . . . . . . . . . . Total Part Build Rating . | . . . . . . . . . . . . . . . . . . . . . . . . . . . Parts Repaired 1 | . . . . . . . . 1 . . . . . . . . . . . . . . . . . . Time 62 | . . . . . . . . 62 . . . . . . . . . . . . . . . . . . Parts Recycled . | . . . . . . . . . . . . . . . . . . . . . . . . . . . Recycled Matter . | . . . . . . . . . . . . . . . . . . . . . . . . . . . Retrieved Matter . | . . . . . . . . . . . . . . . . . . . . . . . . . . . Retrieved Components . | . . . . . . . . . . . . . . . . . . . . . . . . . . . Parts Scanalyzed 1 | . . . . . . . 1 . . . . . . . . . . . . . . . . . . . Part Schematics Acquired 1 | . . . . . . . 1 . . . . . . . . . . . . . . . . . . . Parts Damaged 1 | . . . . . . . 1 . . . . . . . . . . . . . . . . . . . Bothacking | -11 -10 -10 -9 -9 -9 -8 -8 -7 -7 -7 -6 -6 -6 -6 -6 -6 -6 -5 -5 -5 -5 -5 -5 -5 -5 -5 ------------ Run | Scr Mat Min Mat Min Exi Min Mat Fac Low Zio Pro Fac Gar Fac Low Low Dat Pro Fac Gar Fac Ext Cet Arc Hub Gar Used RIF Installer 2 | . . . . . . . . . . . . . 1 . . . . . . 1 . . . . . . Robot Detection 1 | . . . . . . . . . . . . . . . . . . . . 1 . . . . . . Robots Hacked 18 | . . . . . . . . . . . . . . . 1 . . . . . 1 5 . 1 3 7 Non-combat 2 | . . . . . . . . . . . . . . . . . . . . . . 1 . 1 . . Combat 16 | . . . . . . . . . . . . . . . 1 . . . . . 1 4 . . 3 7 Robot Hacks Applied 20 | . . . . . . . . . . . . . . . 1 . . . . . 1 6 . 1 3 8 parse_system 1 | . . . . . . . . . . . . . . . . . . . . . . 1 . . . . purge_threat 3 | . . . . . . . . . . . . . . . . . . . . . . 2 . 1 . . amplify_resonance 2 | . . . . . . . . . . . . . . . . . . . . . . . . . . 2 overwrite_iff 7 | . . . . . . . . . . . . . . . . . . . . . . . . . 1 6 formatsys_high 7 | . . . . . . . . . . . . . . . 1 . . . . . 1 3 . . 2 . Relay Couplers Released 8 | . . . . . . . . . . . . . . . . . . . . 5 . . . . . 3 Machine Destruction 8 | . . . . . . . . . . . . . . . . . . . . 5 . . . . . 3 Attached 7 | . . . . . . . . . . . . . . . 1 . . . . 2 1 . . . 1 2 Robots Rewired 16 | . . . . . . . . . . . . . . . . . . . . . . 16 . . . . Allies Hacked . | . . . . . . . . . . . . . . . . . . . . . . . . . . . Hacks Repelled . | . . . . . . . . . . . . . . . . . . . . . . . . . . . Allies | -11 -10 -10 -9 -9 -9 -8 -8 -7 -7 -7 -6 -6 -6 -6 -6 -6 -6 -5 -5 -5 -5 -5 -5 -5 -5 -5 -------- Run | Scr Mat Min Mat Min Exi Min Mat Fac Low Zio Pro Fac Gar Fac Low Low Dat Pro Fac Gar Fac Ext Cet Arc Hub Gar Total Allies 45 | . . . . . . . . 3 . . . 1 . . 1 . . 1 . . 1 24 5 . 3 6 Largest Group 12 | . . . . . . . . 3 . . . . . . 1 . . 1 . . 1 12 12 5 5 2 Highest-Rated Group 571 | . . . . . . . . 93 . . . . . . 37 . . 95 . . 54 459 571 395 388 58 Highest-Rated Ally 156 | . . . . . . . . 31 . . . . . . 37 . . 95 . . 54 156 156 95 95 54 Total Orders 3 | . . 1 . . . . . . . . . 2 . . . . . . . . . . . . . . EXPLORE 1 | . . . . . . . . . . . . 1 . . . . . . . . . . . . . . RETURN 2 | . . 1 . . . . . . . . . 1 . . . . . . . . . . . . . . Ally Attacks 439 | . . . . . . . . 10 . . . 4 . . 1 . . 8 . . 4 173 113 27 83 16 Total Damage 12902 | . . . . . . . . 193 . . . 51 . . 16 . . 287 . . 128 5468 2913 889 2632 325 Kills 76 | . . . . . . . . 1 . . . 1 . . . . . 4 . . . 30 13 4 19 4 Allies Corrupted . | . . . . . . . . . . . . . . . . . . . . . . . . . . . Allies Melted 1 | . . . . . . . . . . . . . . . . . . . . . . . . . . 1 Intel | -11 -10 -10 -9 -9 -9 -8 -8 -7 -7 -7 -6 -6 -6 -6 -6 -6 -6 -5 -5 -5 -5 -5 -5 -5 -5 -5 ------- Run | Scr Mat Min Mat Min Exi Min Mat Fac Low Zio Pro Fac Gar Fac Low Low Dat Pro Fac Gar Fac Ext Cet Arc Hub Gar Robot Analysis Total 2 | . 1 . . . . . . . . . . . . . . . . . . . . 1 . . . . Derelict Logs Recovered 5 | . . 2 . . . . . . . 1 1 . . . . . . 1 . . . . . . . . Drone Launches 7 | . . 1 . . . . . . . . . 6 . . . . . . . . . . . . . . Drone Recoveries 6 | . . 1 . . . . . . . . . 5 . . . . . . . . . . . . . . Decoded 0b10 Intel 92 | . . . . . . . . . . . . . . . . . . . 18 21 21 27 5 . . . Traps 23 | . . . . . . . . . . . . . . . . . . . 7 11 . 5 . . . . Emergency Access 6 | . . . . . . . . . . . . . . . . . . . 2 1 2 1 . . . . Items 39 | . . . . . . . . . . . . . . . . . . . 6 6 11 16 . . . . Machines 11 | . . . . . . . . . . . . . . . . . . . 2 . 1 4 4 . . . Patrols 8 | . . . . . . . . . . . . . . . . . . . . 3 4 1 . . . . Guards 3 | . . . . . . . . . . . . . . . . . . . 1 . 2 . . . . . Exits 2 | . . . . . . . . . . . . . . . . . . . . . 1 . 1 . . . Exploration | -11 -10 -10 -9 -9 -9 -8 -8 -7 -7 -7 -6 -6 -6 -6 -6 -6 -6 -5 -5 -5 -5 -5 -5 -5 -5 -5 ------------- Run | Scr Mat Min Mat Min Exi Min Mat Fac Low Zio Pro Fac Gar Fac Low Low Dat Pro Fac Gar Fac Ext Cet Arc Hub Gar Turns Passed 16501 | 70 473 419 1571 466 2696 40 812 859 158 971 474 396 321 202 749 453 84 511 487 787 656 971 348 108 1065 354 Spaces Moved 8631 | 38 222 228 600 166 866 12 363 630 130 794 278 218 126 141 604 354 74 372 269 292 451 477 213 44 544 125 Core 18 | 2 . . . . . . . . . . . . . . . . . . . 16 . . . . . . Treads 2346 | 36 222 228 600 166 866 12 . . . . . 68 49 . . . . . . 99 . . . . . . Legs 5033 | . . . . . . . 363 630 130 794 278 150 77 54 2 . . 255 269 177 451 477 213 44 544 125 Wheels 1234 | . . . . . . . . . . . . . . 87 602 354 74 117 . . . . . . . . Hover . | . . . . . . . . . . . . . . . . . . . . . . . . . . . Flight . | . . . . . . . . . . . . . . . . . . . . . . . . . . . Fastest Speed 50 | 50 160 160 160 270 170 270 123 120 120 120 120 120 120 115 100 100 115 115 120 50 120 120 120 120 120 200 Average Speed 158 | 154 160 160 220 270 268 270 131 123 120 120 120 163 182 116 114 112 115 118 120 172 127 176 129 181 161 202 Slowest Speed 520 | 160 160 160 270 270 270 270 210 126 120 120 120 260 280 120 120 115 115 120 120 360 200 200 200 200 200 520 Overloaded Moves . | . . . . . . . . . . . . . . . . . . . . . . . . . . . Propulsion Burnouts . | . . . . . . . . . . . . . . . . . . . . . . . . . . . Robots Hopped . | . . . . . . . . . . . . . . . . . . . . . . . . . . . Cave-ins Triggered . | . . . . . . . . . . . . . . . . . . . . . . . . . . . Exploration Rate (%) 44 | 3 55 64 69 39 89 7 39 16 21 80 45 7 37 4 75 53 73 66 7 42 12 76 56 64 69 31 Regions Visited 26 Branch Regions 15 Pre-discovered Areas 7 | . . 2 . . 1 . . . . 2 . . . . . . 1 . . . . 1 . . . . Known Exits Taken 11 | . . . . . . . . 1 . 1 1 1 . 1 . . . . 1 . 1 1 1 1 1 . Unknown Exits Taken 13 | 1 1 1 1 1 1 1 1 . 1 . . . . . 1 1 1 1 . . . . . . . . Scrap Searched 12 | . . 1 . 1 . . . . 1 4 1 . . . 3 . . 1 . . . . . . . . Spaces Dug 65 | . . . . . 7 . . . . . 5 14 9 . 12 1 . . 1 . 9 1 . . 6 . Terrain Destroyed 444 | . 1 21 56 76 38 35 40 . . . 43 22 42 4 25 1 . . 2 1 12 1 3 . 8 13 Melee 19 | . . . . . . . . . . . . . . . 1 1 . . 1 . 9 1 . . 6 . Projectile 46 | . . . . . 17 . . . . . 1 . 1 4 . . . . 1 1 3 . 3 . 2 13 AOE 378 | . 1 21 56 76 20 35 40 . . . 42 22 41 . 24 . . . . . . . . . . . Terrain Rammed . | . . . . . . . . . . . . . . . . . . . . . . . . . . . Walls Destroyed . | . . . . . . . . . . . . . . . . . . . . . . . . . . . Machines Disabled . | . . . . . . . . . . . . . . . . . . . . . . . . . . . Actions | -11 -10 -10 -9 -9 -9 -8 -8 -7 -7 -7 -6 -6 -6 -6 -6 -6 -6 -5 -5 -5 -5 -5 -5 -5 -5 -5 --------- Run | Scr Mat Min Mat Min Exi Min Mat Fac Low Zio Pro Fac Gar Fac Low Low Dat Pro Fac Gar Fac Ext Cet Arc Hub Gar Total 10354 | 47 285 258 743 177 1084 16 539 681 135 816 344 253 174 163 642 396 73 411 399 469 503 576 260 56 668 186 Wait 467 | 2 22 14 23 3 34 . 38 18 . 1 15 18 5 10 1 35 . 7 93 65 2 7 8 1 30 15 Move 8607 | 37 221 227 599 165 865 11 362 629 129 793 277 217 125 140 603 353 73 371 269 291 450 476 212 43 544 125 Hop . | . . . . . . . . . . . . . . . . . . . . . . . . . . . Pick Up 109 | 2 5 1 14 . 16 . 8 4 3 9 3 1 4 1 6 . . 4 2 9 4 1 6 . 4 2 Fast Attach 108 | 6 2 1 6 . 7 . 12 4 . . 2 4 4 3 4 1 . 6 4 16 12 4 2 . 7 1 Attach 54 | . . 1 2 . 11 . 9 1 . 3 2 1 2 . 2 . . . 1 8 . 2 2 1 4 2 Detach 34 | . 1 1 3 . 10 . 5 1 . 2 . 1 . . . . . 2 1 . 2 2 3 . . . Swap 91 | . 4 1 15 1 2 1 8 1 . 1 4 3 3 . 5 . . . 1 . 4 17 4 1 12 3 Drop 102 | . 1 . 20 . 15 . 7 3 3 7 1 4 2 2 7 . . 1 3 7 7 4 3 . 5 . Fire 585 | . 29 12 60 8 124 4 90 14 . . 40 4 25 7 4 . . . 9 9 9 44 19 10 27 37 Melee 164 | . . . . . . . . . . . . . . . 9 7 . 20 16 63 13 4 1 . 30 1 Ram . | . . . . . . . . . . . . . . . . . . . . . . . . . . . Kick 1 | . . . . . . . . 1 . . . . . . . . . . . . . . . . . . Crush 1 | . . . 1 . . . . . . . . . . . . . . . . . . . . . . . Escape Stasis 30 | . . . . . . . . 5 . . . . 4 . . . . . . 1 . 15 . . 5 . Rewire 1 | . . . . . . . . . . . . . . . 1 . . . . . . . . . . . Trap . | . . . . . . . . . . . . . . . . . . . . . . . . . . . Miscellaneous . | . . . . . . . . . . . . . . . . . . . . . . . . . . . Route ------- -11/Scrapyard -10/Materials (discovered 2 exits: *Mat / *Min) -10/Mines -9/Materials (discovered 2 exits: *Mat / [*Min]) -9/Mines (discovered 2 exits: *Mat / *Exi) -9/Exiles -8/Mines -8/Materials -7/Factory (discovered 4 exits: Sto x2 / *Low x2) -7/Lower Caves -7/Zion -6/Proximity Caves -6/Factory -6/Garrison -6/Factory (discovered 2 exits: *Low x2) -6/Lower Caves -6/Lower Caves -6/Data Miner -5/Proximity Caves -5/Factory (discovered 5 exits: Upp x2 / Ext x2 / Gar) -5/Garrison -5/Factory -5/Extension (discovered 3 exits: *Fac x2 / *Cet) -5/Cetus (discovered 2 exits: *Fac / *Arc) -5/Archives -5/Hub_04(d) (discovered 4 exits: *Fac x3 / Gar) -5/Garrison History --------- Turn | Location | Event 4 | -11/Scrapyard | Discovered new exit (range 16) 71 | -11/Scrapyard | Entered Materials 324 | -10/Materials | Build established: Mutant 392 | -10/Materials | Discovered new exit (range 7) 516 | -10/Materials | Discovered new exit (range 12) 544 | -10/Materials | Entered Mines 545 | -10/Mines | Learned location of Storage (-7) 549 | -10/Mines | Learned location of Zion (-7) 672 | -10/Mines | Learned Materials emergency access door positions 884 | -10/Mines | Discovered new exit (range 7) 915 | -10/Mines | Found the Drone Emporium 929 | -10/Mines | Found Prototype Device 929 | -10/Mines | Identified Splice Drone Bay 963 | -10/Mines | Entered Materials 963 | -9/Materials | Evolved 2 slots: Utility x2 1397 | -9/Materials | Discovered new exit (range 7) 2348 | -9/Materials | Discovered new exit (range 12) 2534 | -9/Materials | Entered Mines 2562 | -9/Mines | Assembled infested the area 2567 | -9/Mines | Assisted by a Guerilla fighting off Assembled 2946 | -9/Mines | Discovered new exit (range 7) 2990 | -9/Mines | Deemed a non-threat by the Exiles lab entrance 2990 | -9/Mines | Discovered new exit (range 5) 3000 | -9/Mines | Entered Exiles 3065 | -9/Exiles | Met 8R-AWN 3108 | -9/Exiles | Met EX-HEX 3211 | -9/Exiles | Met EX-DEC 3369 | -9/Exiles | Discovered new exit (range 12) 3511 | -9/Exiles | Met EX-BIN 3543 | -9/Exiles | Aligned with FarCom system 3546 | -9/Exiles | Given EX-Vault access code 3619 | -9/Exiles | Opened EX-Vault 3641 | -9/Exiles | Found AWS/Thermal 3698 | -9/Exiles | Warned to stay clear of 0b10 Research branches 4465 | -9/Exiles | Attacked by the Exiles 4567 | -9/Exiles | Core integrity fell below 50% 4713 | -9/Exiles | Lost 5 parts (1p1n2u1w) 4739 | -9/Exiles | Core integrity fell below 20% 4741 | -9/Exiles | Destroyed 8R-AWN 4755 | -9/Exiles | Found Prototype Ballistic Gun 4755 | -9/Exiles | Identified 8R-AWN's Boregun 4758 | -9/Exiles | Found Prototype Protection 4758 | -9/Exiles | Identified 8R-AWN's Armor/EX 4763 | -9/Exiles | Found Prototype Device 4763 | -9/Exiles | Identified AS-neutralizer No. 17b 4770 | -9/Exiles | Found Prototype Processor 4770 | -9/Exiles | Identified Exp. Targeting Computer 5052 | -9/Exiles | Destroyed EX-DEC 5117 | -9/Exiles | Destroyed EX-BIN 5180 | -9/Exiles | Destroyed EX-HEX 5262 | -9/Exiles | Found Prototype Device 5262 | -9/Exiles | Identified System Purifier 5696 | -9/Exiles | Entered Mines 5706 | -8/Mines | Discovered new exit (range 10) 5736 | -8/Mines | Entered Materials 5736 | -8/Materials | Evolved 2 slots: Propulsion x2 5878 | -8/Materials | Garrison activated, responded to threat 5913 | -8/Materials | Destroyed 10 combat bots 5921 | -8/Materials | Lost 3 parts (1p2u) 6040 | -8/Materials | Build established: Scavenger-Mutant 6136 | -8/Materials | First assault squad dispatched 6328 | -8/Materials | Lost 4 parts (1p1n2u) 6535 | -8/Materials | Discovered new exit (range 8) 6548 | -8/Materials | Entered Factory 6548 | -7/Factory | Evolved 2 slots: Propulsion x1, Utility x1 6615 | -7/Factory | Identified exit to Storage 6615 | -7/Factory | Identified exit to Lower Caves 6739 | -7/Factory | Allied Derelicts emerged from ambush trap array 6963 | -7/Factory | Repaired Broken Adv. Myomer Leg 7359 | -7/Factory | Cargo convoy interrupted 7407 | -7/Factory | Entered Lower Caves 7408 | -7/Lower Caves | Encountered a Warlord checkpoint 7487 | -7/Lower Caves | A Derelict revealed a hidden shortcut to a safe place 7555 | -7/Lower Caves | Build established: Mutant 7565 | -7/Lower Caves | Entered Zion 7600 | -7/Zion | Discovered new exit (range 16) 7623 | -7/Zion | Given A8's code to call for help 7693 | -7/Zion | System corruption cleaned by Quarantine Array 7745 | -7/Zion | Received a visual enhancement algorithm 7963 | -7/Zion | Found CR-A16's Pointy Stick 7979 | -7/Zion | Acquired unknown access codes intercepted by a Zionite 8053 | -7/Zion | Found GAL Module 8266 | -7/Zion | Learned location of Data Miner (-6) 8349 | -7/Zion | Found Relay Coupler [Programmer] 8351 | -7/Zion | Found Relay Coupler [Programmer] 8353 | -7/Zion | Found Relay Coupler [Programmer] 8359 | -7/Zion | Found Relay Coupler [Programmer] 8361 | -7/Zion | Found Relay Coupler [Programmer] 8535 | -7/Zion | Identified exit to Proximity Caves 8536 | -7/Zion | Entered Proximity Caves 8791 | -6/Proximity Caves | Lost 4 parts (1n2u1w) 8895 | -6/Proximity Caves | Identified exit to Factory 8901 | -6/Proximity Caves | Attracted the attention of an 0b10 checkpoint 9010 | -6/Proximity Caves | Entered Factory 9010 | -6/Factory | Evolved 2 slots: Utility x2 9333 | -6/Factory | Identified exit to Garrison 9406 | -6/Factory | Entered Garrison 9419 | -6/Garrison | Installed Relay Interface Framework 9586 | -6/Garrison | Destroyed 7 combat bots 9590 | -6/Garrison | Triggered checkpoint 9632 | -6/Garrison | Triggered checkpoint 9661 | -6/Garrison | Lost 4 parts (2n2w) 9715 | -6/Garrison | Discovered new exit (range 10) 9725 | -6/Garrison | Identified exit to Factory 9727 | -6/Garrison | Entered Factory 9822 | -6/Factory | Discovered new exit (range 8) 9881 | -6/Factory | Lost 3 parts (1p1n1u) 9910 | -6/Factory | Identified exit to Lower Caves 9929 | -6/Factory | Entered Lower Caves 9968 | -6/Lower Caves | Encountered a Warlord checkpoint 10085 | -6/Lower Caves | Build established: Bothacker-Mutant 10088 | -6/Lower Caves | Spotted B-75 Beast 10169 | -6/Lower Caves | Revealed the true nature of CR-A16's Pointy Stick 10172 | -6/Lower Caves | Destroyed B-75 Beast 10201 | -6/Lower Caves | Lost 3 parts (2u1w) 10302 | -6/Lower Caves | Discovered new exit (range 3) 10472 | -6/Lower Caves | Build established: Mutant 10678 | -6/Lower Caves | Entered another Lower Caves area 10760 | -6/Lower Caves | Core integrity fell below 50% 10824 | -6/Lower Caves | Attracted the attention of an 0b10 checkpoint 11119 | -6/Lower Caves | Discovered new exit (range 11) 11131 | -6/Lower Caves | Entered Data Miner 11131 | -6/Data Miner | Discovered new exit (range 6) 11146 | -6/Data Miner | Met Data Miner 11173 | -6/Data Miner | Learned location of Section 7 (-2) 11189 | -6/Data Miner | Received God Mode back door access code from Data Miner 11215 | -6/Data Miner | Entered Proximity Caves 11390 | -5/Proximity Caves | Escorted by Enhanced Grunt 11539 | -5/Proximity Caves | Build established: Scavenger-Mutant 11576 | -5/Proximity Caves | Received a Behemoth hack from an annoying Tinkerer 11656 | -5/Proximity Caves | Discovered new exit (range 18) 11726 | -5/Proximity Caves | Entered Factory 11726 | -5/Factory | Evolved 2 slots: Propulsion x1, Utility x1 11903 | -5/Factory | Identified exit to Upper Caves 11903 | -5/Factory | Identified exit to Extension 12213 | -5/Factory | Identified exit to Garrison 12213 | -5/Factory | Entered Garrison 12219 | -5/Garrison | Expanded RIF knowledge: Robot Detection 12269 | -5/Garrison | Triggered checkpoint 12337 | -5/Garrison | Lost 6 parts (3n2u1w) 12357 | -5/Garrison | Garrison Relay disabled 12514 | -5/Garrison | Triggered checkpoint 12807 | -5/Garrison | Core integrity fell below 50% 12830 | -5/Garrison | Lost 12 parts (1p3n5u3w) 12985 | -5/Garrison | Discovered new exit (range 13) 12998 | -5/Garrison | Identified exit to Factory 13000 | -5/Garrison | Entered Factory 13333 | -5/Factory | Build established: Bothacker-Mutant 13656 | -5/Factory | Entered Extension 13699 | -5/Extension | Rescued A7 13759 | -5/Extension | Rescued a captive Derelict 13760 | -5/Extension | Rescued a captive Derelict 13948 | -5/Extension | Rescued a captive Derelict 13973 | -5/Extension | Energy Cycler disabled 13974 | -5/Extension | Rescued a captive Derelict 13974 | -5/Extension | Rescued a captive Derelict 13975 | -5/Extension | Rescued a captive Derelict 13978 | -5/Extension | Rescued a captive Derelict 13978 | -5/Extension | Rescued a captive Derelict 13978 | -5/Extension | Rescued a captive Derelict 13980 | -5/Extension | Rescued a captive Derelict 14052 | -5/Extension | Spotted B-75 Beast 14061 | -5/Extension | Spotted B-75 Beast 14074 | -5/Extension | Discovered new exit (range 15) 14084 | -5/Extension | Destroyed B-75 Beast 14092 | -5/Extension | Allies destroyed B-75 Beast 14600 | -5/Extension | Discovered new exit (range 10) 14602 | -5/Extension | Discovered new exit (range 6) 14620 | -5/Extension | Build established: Commander-Mutant 14620 | -5/Extension | Identified exit to Cetus 14627 | -5/Extension | Entered Cetus 14627 | -5/Cetus | Accompanied by 12 allies (A7) 14632 | -5/Cetus | Acquired a Cetus Manufacturing Module code from A7 14653 | -5/Cetus | Spotted Cetus Guard 14653 | -5/Cetus | Spotted Cetus Guard 14655 | -5/Cetus | Spotted Cetus Guard 14658 | -5/Cetus | Spotted Cetus Guard 14672 | -5/Cetus | Allies destroyed Cetus Guard 14675 | -5/Cetus | Allies destroyed Cetus Guard 14681 | -5/Cetus | Destroyed Cetus Guard 14683 | -5/Cetus | Allies destroyed Cetus Guard 14732 | -5/Cetus | Started Cetus Manufacturing Module 14746 | -5/Cetus | Discovered new exit (range 15) 14757 | -5/Cetus | Manufactured an Enhanced Grunt 14782 | -5/Cetus | Manufactured an Enhanced Grunt 14782 | -5/Cetus | Spotted Cetus Guard 14782 | -5/Cetus | Spotted Cetus Guard 14783 | -5/Cetus | Identified exit to Factory 14785 | -5/Cetus | Spotted Cetus Guard 14788 | -5/Cetus | Spotted Cetus Guard 14793 | -5/Cetus | Allies destroyed Cetus Guard 14807 | -5/Cetus | Manufactured an Enhanced Grunt 14816 | -5/Cetus | Destroyed Cetus Guard 14819 | -5/Cetus | Destroyed Cetus Guard 14825 | -5/Cetus | Allies destroyed Cetus Guard 14831 | -5/Cetus | Extracted ID and sensor layout for unrecognized location from A7's data core 14832 | -5/Cetus | Manufactured an Enhanced Grunt 14850 | -5/Cetus | Met Revision 17 14857 | -5/Cetus | Manufactured an Enhanced Grunt 14966 | -5/Cetus | Identified exit to Archives 14975 | -5/Cetus | Entered Archives 14975 | -5/Archives | Accompanied by 5 allies 15048 | -5/Archives | Discovered new exit (range 16) 15080 | -5/Archives | Identified exit to Hub_04(d) 15083 | -5/Archives | Entered Hub_04(d) 15083 | -5/Hub_04(d) | Accompanied by 4 allies 15140 | -5/Hub_04(d) | Spotted B-75 Beast 15156 | -5/Hub_04(d) | Destroyed B-75 Beast 15309 | -5/Hub_04(d) | Discovered exit to Factory (range 6) 15347 | -5/Hub_04(d) | Discovered exit to Factory (range 14) 15559 | -5/Hub_04(d) | Found Corrupted Prototype Device 15624 | -5/Hub_04(d) | Build established: Scavenger-Mutant 15635 | -5/Hub_04(d) | Lost 3 parts (2n1u) 15889 | -5/Hub_04(d) | System corruption reached 10% 15899 | -5/Hub_04(d) | Core integrity fell below 20% 16138 | -5/Hub_04(d) | Discovered exit to Factory (range 8) 16148 | -5/Hub_04(d) | Identified exit to Garrison 16148 | -5/Hub_04(d) | Entered Garrison 16148 | -5/Garrison | Accompanied by 1 ally 16230 | -5/Garrison | Triggered checkpoint 16346 | -5/Garrison | Garrison Relay disabled 16449 | -5/Garrison | Spotted B-75 Beast 16465 | -5/Garrison | Triggered checkpoint 16466 | -5/Garrison | Triggered checkpoint 16502 | -5/Garrison | Destroyed by B-75 Beast with Magnetic Acceleration Cannon Last Messages --------------- 16484_ Penetrated by Slug. 16486_ Network quickbooting G-67 Veteran, ETC: 6. 16487_ Penetrated by Slug. 16487_ Imp. Medium Armor Plating destroyed. 16490_ Centrium Medium Armor Plating destroyed. 16490_ Knocked back. 16491_ Penetrated by Slug. 16492_ G-67 Veteran reactivates. 16493_ Adv. Heat Sink destroyed. 16493_ Enh. Flexi-carbon Leg destroyed. 16493_ Knocked back. 16494_ Penetrated by Slug. 16496_ Enh. Flexi-carbon Leg destroyed. 16496_ Imp. Remote Datajack destroyed. 16496_ Enh. Flexi-carbon Leg blasted off. 16496_ Acquired Carbon-fiber Leg. 16497_ Penetrated by Slug. 16499_ Carbon-fiber Leg destroyed. 16500_ Slug penetrates Wall. 16501_ Mic. Fission Core destroyed. Map ----- +----------------------------------------------------+ | ????????????????????????????????????######### #? | | ????????????????????????????????????#[= #? | | ????????????????????????????????????#[*%[ #? | | ????????????????????????????????????#%|##########? | | ????????????????????????????????????#==#?????????? | | ????????????????????????????????????# =#?????????? | | ????????????????????????????????????# #?????????? | | ????????????????????????????????????# #??#######? | | ????????????????????????????????????# #??#" """#? | | ????????????????????????????????????# ##### ! ### | | ????????????????????????????????????# " # # | | ????????????????????????????????????# "# ###### # | | ????????????????????????????????????# ## #????# # | | ?????????????????????????############ ## #????# # | | ?????????????????????????# ## ###??# # | | ?????????????????????????# * ## #"####* | | ?????????????????????????# #########%=##[% %+== | | ?????????????????????????# #???????#*%####""#%[^% | | ?????????????????????????# #???????# [####"###"*# | | ?????????????????????????# #??? + %= " | | ???????????????????####?## #???????# ####""""### | | ???????????????#???#CCC # #???????# #??######?? | | ??????????????## ## # ##??????# #?????????? | | ??????????????# %= g ######## #?????????? | | ??????????????# % % #?????????? | | ??????????????# BB @ = = #?????????? | | ??????????????# ## BB;;%%%###########?????????? | | ???????????????????# ##*[%#???????????????????? | | ??????????????? h[= #?????????????????? | | ??????????????" #?????????????????? | | ??????????????" #?????????????????? | | ??????????????" #?????????????????? | | ??????????????# ## ## ###?????????????????? | | ??????????????# ??# ?# #???????????????????? | | ????????????? ?? ? #???????????????????? | | ?????????????? ?? ?? #???????????????????? | | ???????????????? ??%" #???????????????????? | | ???????????????? ##""??## #???????????????????? | | ???????????????? ????????# #???????????????????? | | ?????????????????????????# #???????????????????? | | ?????????????????????????# #???????????????????? | | ?????????????????????????? ????????????????????? | | ?????????????????????????? ????????????????????? | | ?????????????????????????????????????????????????? | | ?????????????????????????????????????????????????? | | ?????????????????????????????????????????????????? | | ?????????????????????????????????????????????????? | | ?????????????????????????????????????????????????? | | ?????????????????????????????????????????????????? | | ?????????????????????????????????????????????????? | +----------------------------------------------------+ Best States ------------- Heat Dissipation 116 Energy Generation 23 Energy Capacity 295 Matter Stores 300 Matter Capacity 300 Sight Range 22 Terrain Scan Density 210 Base Temperature (-) 100 Armor Coverage 1225 Resistance: TH 15 Resistance: EX 90 Core Shielding 30 Evasion (%) 55 Targeting Accuracy 12 Target Analysis 5 Recoil Reduction 2 Offensive Hacking 10 Relay Coupler Types 104 Relay Coupler Value 3 Item Schematics ----------------- Adv. Myomer Leg | -8/Materials | Scanalyzed Combat Drone Bay | -6/Data Miner | Free Lgt. Regenerative Plating | -6/Data Miner | Free Exp. Flexi-carbon Leg | -6/Data Miner | Free Exp. Cesium-ion Thruster | -6/Data Miner | Free Exp. ECM Suite | -6/Data Miner | Free Robot Schematics ------------------ S-27 Virus | -6/Data Miner | Free G-50 Soldier | -6/Data Miner | Free G-67 Veteran | -6/Data Miner | Free I-36 Angel | -6/Data Miner | Free I-47 Archangel | -6/Data Miner | Free Fabricated ------------ Nothing Alien Tech Used ----------------- None Achievements -------------- None Challenges ------------ None Game ------ Seed LightModifiedStripper Manual? 0 Play Time 01:52:53 Cumulative 216.4 hours Start 2021.08.08 @ 15:05:27 End 2021.08.08 @ 17:00:52 Sessions 1 Manual Loads 0 Difficulty Rogue Special Mode None Game No. 281 Rogue 194 Adventurer 87 Explorer 0 Win Type - Total 4 Types 3/0/0/1/0/0/0/0/0 Lore% 68 Gallery% 76 Achievement% 62 Wizard Run 0 Options --------- ASCII 0 Keyboard 1 Movement Numpad Keybinds 0 Fullscreen 1 Font 18/Smallcaps Map View 76x50 Tactical HUD 1 Map Filters NONE Filters NONE Steam 1 RUN: fe555fe0-d34c-491d-b041-e24dad7764c3